Cogmind - Beta 14 @@@ ROGUE MODE // 2024.12.26 @ 15:26:32 Player: Charango24 Result: Destroyed by G-34 Mercenary with Small Laser Performance ------------- Evolutions (0) 0 Regions Visited (2) 400 Robots Destroyed (18) 90 Value Destroyed (351) 351 Prototype IDs (0) 0 Alien Tech Used (0) 0 Bonus (0) 0 TOTAL SCORE: 841 Bonus ------- None Cogmind --------- Core Integrity 0/250 Matter 99/300 Energy 99/100 System Corruption 0% Temperature Cool (6) Movement Rolling (100) Location -10/Mines Parts ------- > --- POWER (1) -------- (None) > --- PROPULSION (2) --- Compact Wheel > --- UTILITY (2) ------ Medium Storage Unit Structural Scanner > --- WEAPON (2) ------- Light Assault Rifle > --- INVENTORY (10) --- Light Ion Engine Compact Wheel Small Storage Unit Visual Processing Unit Terrain Scanner Beam Cannon Light Assault Rifle Grenade Launcher Mining Laser Peak State ------------ > --- POWER ------------ Light Ion Engine > --- PROPULSION ------- Compact Wheel Compact Wheel > --- UTILITY ---------- Medium Storage Unit Structural Scanner > --- WEAPON ----------- Assault Rifle Assault Rifle > --- INVENTORY -------- Ion Engine Compact Wheel Compact Wheel Small Storage Unit Visual Processing Unit Terrain Scanner Light Assault Rifle Grenade Launcher Mining Laser [Rating: 8] Favorites ----------- Power Light Ion Engine Engine Light Ion Engine Propulsion Compact Wheel Wheel Compact Wheel Utility Medium Storage Unit Device Structural Scanner Storage Medium Storage Unit Weapon Assault Rifle Ballistic Gun Assault Rifle Ballistic Cannon Light Cannon Build | -11 -10 -10 ------- Run | Yrd Mat Min Slots Evolved . | . . . Power . | . . . Propulsion . | . . . Utility . | . . . Weapon . | . . . Parts Attached 17 | 7 7 3 Power 3 | 1 1 1 Engine 3 | 1 1 1 Core . | . . . Reactor . | . . . Propulsion 4 | 2 1 1 Treads . | . . . Leg . | . . . Wheel 4 | 2 1 1 Hover . | . . . Flight . | . . . Utility 3 | 1 2 . Device 1 | . 1 . Storage 2 | 1 1 . Processor . | . . . Hackware . | . . . Protection . | . . . Artifact . | . . . Weapon 7 | 3 3 1 Energy Gun . | . . . Energy Cannon . | . . . Ballistic Gun 6 | 3 2 1 Ballistic Cannon 1 | . 1 . Launcher . | . . . Special Weapon . | . . . Impact Weapon . | . . . Slashing Weapon . | . . . Piercing Weapon . | . . . Special Melee Weapon . | . . . Unidentified Prototypes . | . . . Parts Lost 8 | . 2 6 Power 2 | . . 2 Propulsion 3 | . 1 2 Utility . | . . . Weapon 3 | . 1 2 Highest Loss Streak 3 | . 1 3 To Critical Strikes . | . . . Average Slot Usage (%) 93 | . 93 92 Engine 13 | . 14 13 Wheel 27 | . 28 23 Device 9 | . 9 14 Storage 14 | . 14 14 Ballistic Gun 21 | . 20 26 Ballistic Cannon 5 | . 6 . Peak Build Rating 8 | 6 8 8 Average Rating 6 | 4 7 7 On Entrance 4 | . 6 8 Naked Turns . | . . . Heaviest Build 20 | 12 20 20 Greatest Support 32 | 32 32 32 Greatest Overweight (x) 1 | . 1 1 Average Overweight (x) . | . . . Largest Inventory Capacity 10 | 8 10 10 Average Capacity 9 | 7 9 10 Most Carried 10 | 5 10 9 Average Carried 7 | 1 7 8 Final Capacity 10 | 8 10 10 Final Carried 9 | 2 9 9 Class Distribution -------------------- 100% | Mutant Dominant Class ---------------- Mutant | -10/Materials Mutant | -10/Mines Resources | -11 -10 -10 ----------- Run | Yrd Mat Min Matter Collected 526 | 173 209 144 Remotely . | . . . Salvage Created 409 | . 293 116 Parts 34 | . 24 10 Haulers Intercepted . | . . . Recyclers Shooed . | . . . Parts Field Recycled . | . . . Retrieved Matter . | . . . Parts Self-Destructed . | . . . Prevented . | . . . Kills | -11 -10 -10 ------- Run | Yrd Mat Min Combat Hostiles Destroyed 16 | . 10 6 Guns 13 | . 7 6 Cannons 3 | . 3 . Classes Destroyed 4 | . 4 . Builder 1 | . 1 . Watcher 1 | . 1 . Swarmer 10 | . 5 5 Grunt 6 | . 5 1 Best Kill Streak 4 | . 4 3 Combat Bots Only 4 | . 4 3 Max Kills in Single Turn 1 | . 1 1 Gunslinging . | . . . Exploded . | . . . Melee . | . . . Uniques/NPCs Destroyed . | . . . Combat | -11 -10 -10 -------- Run | Yrd Mat Min Hostile Shots Fired 152 | . 74 78 Missed 52 | . 28 24 Damage Taken 989 | . 475 514 Core 252 | . 123 129 Absorbed by Shields . | . . . Regen/Repaired (Parts) 96 | . 96 . Core Remaining (%) 100 | 100 . . Volleys Fired 78 | . 44 34 Largest 2 | . 2 2 Hottest 55 | . 55 40 Shots Fired 141 | . 85 56 Gun 125 | . 69 56 Cannon 16 | . 16 . Launcher . | . . . Special . | . . . Kinetic 141 | . 85 56 Thermal . | . . . Explosive . | . . . Electromagnetic . | . . . Robot Hit Streak 8 | . 6 8 Robot Miss Streak 6 | . 6 6 Penetration Max . | . . . Secondary Targets 2 | . 1 1 Max Gunslinging Chain 1 | . 1 1 Shots Hit Robots 75 | . 48 27 Core Hits 28 | . 16 12 Critical Kills . | . . . Critical Parts Destroyed . | . . . Critical Strikes 2 | . 2 . Blast 2 | . 2 . Melee Attacks . | . . . Impact . | . . . Slashing . | . . . Piercing . | . . . Sneak Attacks . | . . . Combat Hostiles . | . . . Follow-up Attacks . | . . . Damage Inflicted 928 | . 667 261 Guns 737 | . 476 261 Cannons 191 | . 191 . Explosions . | . . . Melee . | . . . Ramming . | . . . Kinetic 928 | . 667 261 Thermal . | . . . Explosive . | . . . Electromagnetic . | . . . Impact . | . . . Slashing . | . . . Piercing . | . . . Highest Corruption . | . . . Average Corruption . | . . . Corruption Purged . | . . . Corruption Blocked . | . . . Overload Shots . | . . . Overflow Damage . | . . . Projectiles . | . . . Explosions . | . . . Melee . | . . . Knockbacks 4 | . 4 . Impact . | . . . Kinetic 3 | . 3 . Secondary 1 | . 1 . Self-Inflicted Damage . | . . . Shots . | . . . Rammed . | . . . Targets Rammed . | . . . Kicked . | . . . Crushed . | . . . Highest Temperature 20 | . 20 15 Average Temperature 8 | . 8 9 Received Heat Transfer 279 | . 156 123 Siege Activations . | . . . Robots Corrupted . | . . . Combat Hostiles . | . . . Parts Fried . | . . . Impact Corruptions . | . . . Robots Melted . | . . . Combat Hostiles . | . . . Parts Melted . | . . . Heat Transferred . | . . . Parts Sabotaged . | . . . Parts Stolen . | . . . Parts Stripped . | . . . Power Chain Reactions . | . . . Alert | -11 -10 -10 ------- Run | Yrd Mat Min Peak Influence 193 | . 193 155 Initial 75 | . . 75 Average 71 | . 62 140 Maximum Alert Level . | . . . Low Security (%) 100 | 100 100 100 Level 1 . | . . . Level 2 . | . . . Level 3 . | . . . Level 4 . | . . . Level 5 . | . . . High Security . | . . . Max Security . | . . . Squads Dispatched 1 | . 1 . Investigation . | . . . Extermination . | . . . Reinforcement 1 | . 1 . Assault . | . . . Garrison . | . . . Intercept . | . . . Searches Triggered . | . . . Construction Impeded . | . . . Haulers Reinforced . | . . . Active Scanning Responses . | . . . Cargo Convoy Interrupts . | . . . Stealth | -11 -10 -10 --------- Run | Yrd Mat Min Distress Signals . | . . . Communications Jammed . | . . . Distress Signals . | . . . Times Spotted 24 | . 16 8 Peak Tracking Total 4 | . 4 3 Tactical Retreats 1 | . 1 . Traps | -11 -10 -10 ------- Run | Yrd Mat Min Traps Triggered . | . . . Indirectly . | . . . Trap Hack Attempts . | . . . Triggered . | . . . Disarmed 8 | . 8 . Reprogrammed . | . . . Reused . | . . . Traps Extracted . | . . . Installed . | . . . Triggered . | . . . Machines | -11 -10 -10 ---------- Run | Yrd Mat Min Machines Disabled . | . . . Max in Single Turn . | . . . Machines Repaired . | . . . Machines Dismantled . | . . . Machines Sabotaged . | . . . Overloaded Fab Kills . | . . . Hacking | -11 -10 -10 --------- Run | Yrd Mat Min Machines Accessed 4 | . 4 . Terminals 3 | . 3 . Fabricators . | . . . Repair Stations 1 | . 1 . Recycling Units . | . . . Scanalyzers . | . . . Garrison Access . | . . . Total Hacks 7 | . 7 . Successful 7 | . 7 . Failed . | . . . Catastrophic . | . . . Database Lockouts . | . . . Manual . | . . . Terminals 5 | . 5 . Fabricators . | . . . Repair Stations 2 | . 2 . Recycling Units . | . . . Scanalyzers . | . . . Garrison Access . | . . . Terminal Hacks 5 | . 5 . Alert Level 1 | . 1 . Locate Traps 1 | . 1 . Disarm Traps 2 | . 2 . Zone Layout 1 | . 1 . Fabricator Hacks . | . . . Repair Station Hacks 2 | . 2 . Scan Component 1 | . 1 . Repair 1 | . 1 . Recycling Unit Hacks . | . . . Scanalyzer . | . . . Garrison Access Hacks . | . . . Unauthorized Hacks . | . . . Terminals . | . . . Fabricators . | . . . Repair Stations . | . . . Recycling Units . | . . . Scanalyzers . | . . . Garrison Access . | . . . Data Cores Recovered . | . . . Used . | . . . Hacking Detections 3 | . 3 . Full Trace Events . | . . . Feedback Events . | . . . Feedback Blocked . | . . . Robot Schematics Acquired . | . . . Robots Built . | . . . Authchips . | . . . Time . | . . . Total Robot Build Rating . | . . . Part Schematics Acquired . | . . . Parts Built . | . . . Authchips . | . . . Time . | . . . Total Part Build Rating . | . . . Parts Repaired 1 | . 1 . Time 26 | . 26 . Parts Recycled . | . . . Recycled Matter . | . . . Retrieved Matter . | . . . Retrieved Components . | . . . Parts Scanalyzed . | . . . Part Schematics Acquired . | . . . Parts Damaged . | . . . Bothacking | -11 -10 -10 ------------ Run | Yrd Mat Min Used RIF Installer . | . . . Robots Hacked . | . . . Non-combat . | . . . Combat . | . . . Robot Hacks Applied . | . . . Relay Couplers Released . | . . . Fabnet Peak Effective % . | . . . Robots Rewired . | . . . Allies Hacked . | . . . Hacks Repelled . | . . . Allies | -11 -10 -10 -------- Run | Yrd Mat Min Total Allies . | . . . Largest Group . | . . . Highest-Rated Group . | . . . Highest-Rated Ally . | . . . Total Orders . | . . . Ally Attacks . | . . . Total Damage . | . . . Kills . | . . . Allies Corrupted . | . . . Allies Melted . | . . . Intel | -11 -10 -10 ------- Run | Yrd Mat Min Robot Analysis Total . | . . . Derelict Logs Recovered . | . . . Drone Launches . | . . . Drone Recoveries . | . . . Exploration | -11 -10 -10 ------------- Run | Yrd Mat Min Turns Passed 943 | 52 735 156 Spaces Moved 625 | 41 523 61 Core 8 | 8 . . Treads . | . . . Legs . | . . . Wheels 617 | 33 523 61 Hover . | . . . Flight . | . . . Fastest Speed 50 | 50 100 100 Average Speed 99 | 90 100 100 Slowest Speed 115 | 100 115 115 Overloaded Moves . | . . . Propulsion Burnouts . | . . . Robots Hopped . | . . . Cave-ins Triggered . | . . . Exploration Rate (%) 34 | 4 71 28 Regions Visited 2 Branch Regions 1 Pre-discovered Areas . | . . . Known Exits Taken . | . . . Unknown Exits Taken 2 | 1 1 . Scrap Searched 1 | . . 1 Spaces Dug . | . . . Terrain Destroyed . | . . . Melee . | . . . Projectile . | . . . AOE . | . . . Terrain Rammed . | . . . Walls Destroyed . | . . . Machines Disabled . | . . . Actions | -11 -10 -10 --------- Run | Yrd Mat Min Total 815 | 55 655 105 Wait 63 | . 59 4 Move 623 | 40 522 61 Hop . | . . . Pick Up 27 | 8 16 3 Fast Attach . | . . . Attach 16 | 6 7 3 Detach 2 | . 2 . Swap 1 | 1 . . Drop 5 | . 5 . Fire 78 | . 44 34 Melee . | . . . Ram . | . . . Kick . | . . . Crush . | . . . Escape Stasis . | . . . Rewire . | . . . Trap . | . . . Miscellaneous . | . . . Route ------- -11/Scrapyard -10/Materials (discovered 4 exits: [*Mat x2] / [*Min x2]) -10/Mines History --------- Turn | Location | Event 5 | -11/Scrapyard | Discovered new exit (range 16) 53 | -11/Scrapyard | Entered Materials 132 | -10/Materials | Discovered new exit (range 16) 249 | -10/Materials | Discovered new exit (range 16) 306 | -10/Materials | Build established: Mutant 486 | -10/Materials | Discovered new exit (range 16) 637 | -10/Materials | Discovered new exit (range 4) 677 | -10/Materials | Repaired Assault Rifle 788 | -10/Materials | Entered Mines 798 | -10/Mines | Core integrity fell below 50% 893 | -10/Mines | Lost 3 parts (1p1n1w) 929 | -10/Mines | Core integrity fell below 20% 944 | -10/Mines | Destroyed by G-34 Mercenary with Small Laser Last Messages --------------- ELIMINATE." 00839_ Com. Wheel destroyed. 00842_ Assault Rifle destroyed. 00846_ S-10 Pest suffers critical hit (Destroy). 00851_ S-10 Pest destroyed. 00857_ Acquired 11 matter. 00860_ S-10 Pest destroyed. 00862_ Ion Engine destroyed. 00864_ S-10 Pest destroyed. 00870_ Acquired Lgt. Assault Rifle. 00874_ Acquired 14 matter. 00876_ Acquired Beam Cannon. 00880_ Acquired 18 matter. 00886_ Acquired 14 matter. 00888_ Acquired Lgt. Ion Engine. 00914_ K-01 Serf collects debris. 00922_ Com. Wheel destroyed. 00924_ Assault Rifle destroyed. 00930_ Lgt. Ion Engine destroyed. 00935_ G-47 Trooper destroyed. Map ----- +----------------------------------------------------+ | | | | | | | | | ?????????????????????????????????????????????????? | | ?????????????????????????????????????????????????? | | ?????????????????????????????????????????????????? | | ?????????????????????????????????????????????????? | | ?????????????????????????????????????????????????? | | ???????????????###???????????????????????????????? | | ??????????????? ##???????????????????????????????? | | ????????????? #???????????????????????????????? | | ????????????# ##??????????????????????????????? | | ???????????### ##?????????????####?????????????? | | ?????????##### ###?#####??????####?????????????? | | ?????????#### ##########? ##? ##?????????????? | | ????????? #### #### ##? ##?????????????? | | ???????????? ## ### # ##?????????????? | | ????????????## ##### ?????????? | | ????????????### ?? ##### ?????????? | | ????????????### ??? ?????????? | | ?? ??????#### ##?? ???????????? | | ??## ??????### #### ##????????????? | | ??## ??????## ####g% ###????????????? | | ??## ??????## ## [ ##?????????????? | | ??## ???##### @ ##?????????????? | | ??## ##?###### ###?????????????? | | ??## ##### ###??????????????? | | ?### ##### ####??????????????? | | ?### #### #### ## ###???????????????? | | ?## ### ##### #### ##???????????????? | | ?## ### ########### ##???????????????? | | ?## ##?######## ###???????????????? | | ?## ##???????# u #####???????????????? | | ?## ######???????? #####????????????????? | | ?## ######???????? # ####??????????????????? | | ### =###??????????? ???????????????????? | | ### =####??????????? ???????????????????? | | ## ==###???????????? ######???????????????????? | | ## = ##?????????????k #######???????????????????? | | ###= ###?????????????####????????????????????????? | | ###= ###?????????????###?????????????????????????? | | ?## =##??????????????????????????????????????????? | | ?##==##??????????????????????????????????????????? | | ###* ##??????????????????????????????????????????? | | ### [##??????????????????????????????????????????? | | ### ##??????????????????????????????????????????? | | ##??????????????????????????????????????????? | | ##??????????????????????????????????????????? | | ## ####??????????????????????????????????????????? | +----------------------------------------------------+ Best States ------------- Heat Dissipation 25 Energy Generation 10 Energy Capacity 250 Matter Stores 203 Matter Capacity 300 Sight Range 16 Terrain Scan Density 10 Evasion (%) 50 Item Schematics ----------------- None Robot Schematics ------------------ None Fabricated ------------ Nothing Alien Tech Used ----------------- None Achievements -------------- None Challenges ------------ None Game ------ Seed DimensionalSlugWeb Manual? 0 Play Time 00:10:32 Cumulative 14.4 hours Start 2024.12.26 @ 15:17:25 End 2024.12.26 @ 15:26:32 Sessions 1 Manual Loads 0 Difficulty Rogue Special Mode None Game No. 22 Rogue 9 Adventurer 13 Explorer 0 Win Type - Total 0 Types 0/0/0/0/0/0/0/0/0 Lore% 10 Gallery% 22 Achievement% 22 Wizard Run 0 Options --------- Layout 1 ASCII 0 Keyboard 1 Movement Numpad Keybinds 0 Fullscreen 2 Font 24/Smallcaps Map View 50x35 Zoom Use 0% Tactical HUD 1 Map Filters NONE Filters NONE Steam 1 RUN: cf7571eb-1576-4c6c-ab24-2edd1ed416f8